bitfinex/quotes_SOLUSD_20241007
["timestamp","ask_amount","ask_price","bid_price","bid_amount"]
[1728325921020,32.6694,148.1,148.01,23.6462]
[1728325921328,6.1311,148.08,148.01,16.8901]
[1728325921499,1.68892827,148.07,147.96,1.17519424]
[1728325921701,6.7543,148.06,148.01,6.7562]
[1728325921900,6.755,148.04,148.0,23.6482]
[1728325922922,6.7541,148.06,148.01,6.7559]
[1728325923112,1.68880732,148.05,148.01,6.7559]
[1728325923628,8.44330732,148.05,148.01,6.7559]
[1728325923931,8.44340732,148.05,148.0,23.6483]
[1728325924106,8.44340732,148.05,148.0,16.8916]
[1728325924307,8.44340732,148.05,148.01,6.7562]
[1728325926910,16.0997,148.04,148.01,6.7562]
[1728325927308,16.0997,148.04,148.02,6.7554]
[1728325927633,1.6889077,148.07,148.03,6.7552]
[1728325927929,1.6889077,148.07,148.04,6.7548]
[1728325928231,28.984,148.08,148.04,6.7548]
[1728325928232,16.0997,148.08,148.04,6.7548]
[1728325928429,24.54135774,148.08,148.04,6.7548]
[1728325929029,1.68856145,148.1,148.07,6.7535]
[1728325929203,1.68831903,148.11,148.08,6.753]
[1728325929601,22.1538,148.12,148.06,16.8844]
[1728325929830,1.68803787,148.11,148.08,16.8823]
[1728325930037,8.43983787,148.11,148.08,16.8823]
[1728325930330,8.4399399,148.11,148.08,16.8823]
[1728325930528,22.3326,148.12,148.08,23.635]
[1728325930723,15.5813,148.12,148.09,23.776884]
[1728325930915,1.68808635,148.15,148.12,6.7512]
[1728325931121,1.68808635,148.15,148.11,6.7517]
[1728325931432,6.7485,148.18,148.12,16.8772]
[1728325931638,1.68743455,148.17,148.13,6.7507]
[1728325931808,6.7491,148.17,148.13,6.7507]
[1728325932008,1.68744122,148.16,148.13,6.7507]
[1728325932713,6.7491,148.17,148.13,6.7507]
[1728325932921,8.43593788,148.19,148.14,6.7501]
[1728325933133,1.68743788,148.19,148.13,6.7507]
[1728325933338,6.7491,148.17,148.13,6.7507]
[1728325934407,1.68743788,148.19,148.15,6.7497]
[1728325934616,22.3292,148.2,148.14,16.8753]
[1728325934826,8.43539529,148.19,148.15,6.7498]
[1728325935016,1.68719529,148.19,148.11,47.406984]
[1728325935221,6.749,148.17,148.12,6.7509]
[1728325935424,8.43712629,148.16,148.11,47.407284]
[1728325935737,6.7499,148.15,148.11,47.407284]
[1728325935934,6.7504,148.14,148.11,16.8788]
[1728325936111,6.7509,148.13,148.09,6.7525]
[1728325938047,6.7517,148.11,148.07,6.7535]
[1728325938252,15.2378,148.13,148.08,6.753]
[1728325938427,6.7513,148.12,148.07,23.6369]
[1728325938620,1.68802812,148.11,148.07,23.6369]
[1728325938820,8.43982812,148.11,148.07,23.6369]
[1728325939045,1.68802812,148.11,148.07,23.6369]
[1728325939242,23.67705948,148.13,148.08,6.753]
[1728325939428,16.92585948,148.13,148.07,16.8835]
[1728325939629,6.7517,148.12,148.07,16.8835]
[1728325939845,8.44000558,148.11,148.07,23.6367]
[1728325940121,1.68810558,148.11,148.07,23.6367]
[1728325940320,6.7517,148.11,148.07,23.6367]
[1728325940729,8.4394043,148.12,148.07,23.6367]
[1728325941632,8.4394043,148.12,148.07,16.8835]
[1728325941834,8.4394043,148.12,148.08,6.7529]
[1728325942035,23.67673241,148.13,148.08,6.7529]
[1728325942249,6.7499,148.15,148.11,6.7516]
[1728325942554,1.68775358,148.16,148.13,6.7507]
[1728325942841,23.98612246,148.17,148.13,6.7506]
[1728325943019,15.5493,148.17,148.14,6.7502]
[1728325943223,23.98598684,148.17,148.13,6.7507]
[1728325943430,17.23668684,148.17,148.14,6.7502]
[1728325943719,17.23676298,148.17,148.14,6.7502]
[1728325943924,6.7495,148.16,148.12,23.629]
[1728325944126,1.68757691,148.15,148.09,16.8807]
[1728325944324,6.7509,148.13,148.09,16.8807]
[1728325944556,6.7513,148.12,148.08,6.7528]
[1728325945054,6.7505,148.14,148.09,6.7525]
[1728325945240,8.43742061,148.16,148.12,6.7508]
[1728325945446,15.5493,148.17,148.06,53.7679]
[1728325945632,8.43687598,148.16,148.12,23.6289]
[1728325946148,6.7504,148.14,148.1,6.7518]
[1728325946662,6.7504,148.14,148.11,23.776884]
[1728325947134,1.68747598,148.16,148.09,16.8814]
[1728325947336,8.43697598,148.16,148.12,6.7512]
[1728325947860,8.43710808,148.16,148.12,6.7512]
[1728325948049,6.7499,148.15,148.12,23.776884]
[1728325948557,15.5493,148.17,148.12,23.776884]
[1728325948757,1.68752656,148.19,148.14,6.7499]
[1728325948929,1.68752656,148.19,148.12,23.776884]
[1728325948930,15.4513,148.2,148.17,6.7489]
[1728325949444,6.7468,148.22,148.18,6.7484]
[1728325949637,1.68682207,148.23,148.18,6.7484]
[1728325949833,8.43342207,148.23,148.18,6.7484]
[1728325950035,8.43342207,148.23,148.17,16.872]
[1728325950036,23.88398385,148.24,148.14,30.73093768]
[1728325950334,6.747,148.22,148.18,6.7484]
[1728325950563,1.68686759,148.21,148.17,6.7488]
[1728325950935,6.7475,148.21,148.17,6.7488]
[1728325951241,6.7482,148.19,148.15,23.776884]
[1728325951433,6.7485,148.18,148.15,23.776884]
[1728325951765,1.68710307,148.23,148.16,23.776884]
[1728325952059,8.43360307,148.23,148.19,6.748]
[1728325952245,6.7469,148.22,148.18,30.525284]
[1728325952838,8.43350307,148.23,148.18,30.525284]
[1728325953140,6.7467,148.22,148.18,30.525284]
[1728325954153,1.68679183,148.21,148.15,23.776884]
[1728325954359,6.7483,148.19,148.15,30.526684]
[1728325954568,32.3164,148.24,148.1,23.6315]
[1728325954569,6.7506,148.14,148.1,23.6315]
[1728325954851,8.43662429,148.17,148.13,6.7507]
[1728325955058,8.43662429,148.17,148.12,6.7508]
[1728325955245,8.43662429,148.17,148.13,6.7507]
[1728325955559,6.7491,148.17,148.13,6.7507]
[1728325956127,1.68738394,148.18,148.12,16.8774]
[1728325956366,6.7482,148.19,148.15,6.7496]
[1728325956855,1.687138,148.18,148.14,16.8751]
[1728325957063,6.749,148.17,148.14,16.8751]
[1728325957357,1.68733757,148.21,148.11,16.8785]
[1728325957552,16.8694,148.2,148.12,23.776884]
[1728325957858,6.7491,148.17,148.13,6.7508]
[1728325958235,1.68738313,148.19,148.14,6.7501]
[1728325958236,6.7486,148.18,148.14,6.7501]
[1728325958931,1.6873347,148.21,148.16,23.776884]
[1728325959239,1.6873347,148.21,148.15,16.8743]
[1728325959438,6.7482,148.19,148.15,23.624]
[1728325959651,15.4513,148.24,148.16,23.776884]
[1728325959837,6.7464,148.23,148.19,6.748]
[1728325960764,15.4513,148.24,148.2,6.7476]
[1728325961059,22.1974,148.24,148.2,6.7476]
[1728325961449,6.747,148.22,148.18,6.7484]
[1728325961628,1.68659966,148.23,148.18,23.776884]
[1728325961833,1.68659966,148.23,148.13,16.8762]
[1728325961834,1.68692343,148.22,148.13,16.8762]
[1728325962056,6.7482,148.19,148.13,16.8762]
[1728325962263,6.7477,148.2,148.15,6.7495]
[1728325962447,15.4513,148.24,148.09,6.5815]
[1728325962448,1.68704019,148.19,148.09,6.5815]
[1728325962642,1.68704019,148.19,148.12,6.7512]
[1728325962947,1.68737036,148.2,148.12,16.8773]
[1728325963285,1.68737036,148.2,148.14,6.7503]
[1728325963558,6.7481,148.19,148.15,6.7498]
[1728325963768,6.7472,148.21,148.17,6.7489]
[1728325964057,1.68706286,148.2,148.14,16.8753]
[1728325965260,6.7483,148.19,148.15,23.776884]
[1728325966234,6.7486,148.18,148.14,23.6255]
[1728325966662,6.7486,148.18,148.15,23.776884]
[1728325967661,1.68718538,148.17,148.12,23.776884]
[1728325967833,6.2446,148.18,148.11,23.6302]
[1728325968037,1.68747927,148.17,148.11,23.6302]
[1728325968947,6.7504,148.14,148.11,16.8787]
[1728325969165,6.75,148.15,148.11,16.8787]
[1728325969466,1.68747927,148.17,148.09,6.7525]
[1728325969467,6.7507,148.14,148.09,6.7525]
[1728325969838,6.7509,148.13,148.09,6.7525]
[1728325970252,1.68747927,148.17,148.08,23.6349]
[1728325970444,16.1424,148.15,148.05,16.8853]
[1728325970648,1.6880825,148.14,148.05,16.8853]
[1728325970964,6.7518,148.11,148.07,6.7534]
[1728325971172,18.5643825,148.14,148.05,16.8853]
[1728325971351,23.2085,148.12,148.03,6.7552]
[1728325971549,6.7541,148.06,148.02,16.8891]
[1728325972661,6.7541,148.06,148.02,23.6448]
[1728325972860,21.8968,148.08,148.02,16.8891]
[1728325973065,15.1434,148.08,148.05,6.7544]
[1728325973246,15.1434,148.08,148.06,6.7539]
[1728325973448,15.1434,148.08,148.04,23.6414]
[1728325973666,15.1434,148.08,148.05,23.776884]
[1728325973961,8.44001835,148.11,148.05,23.776884]
[1728325974174,1.68831835,148.11,148.05,6.754]
[1728325974545,6.7522,148.1,148.05,6.754]
[1728325975246,1.68831835,148.11,148.05,23.776884]
[1728325975449,6.7527,148.09,148.05,30.531284]
[1728325976751,6.7523,148.1,148.05,30.531284]
[1728325977462,8.44011835,148.11,148.06,6.7537]
[1728325977651,1.68831835,148.11,148.06,16.8843]
[1728325977854,29.5204,148.12,148.07,23.776884]
[1728325977855,16.4391,148.12,148.07,23.776884]
[1728325978063,16.4391,148.12,148.09,6.7525]
[1728325978287,1.68788169,148.14,148.1,6.752]
[1728325978446,1.68788169,148.14,148.11,6.7515]
[1728325978666,8.43768196,148.15,148.11,6.7515]
[1728325979072,8.43768196,148.15,148.1,16.8798]
[1728325979268,28.8544,148.16,148.12,6.751]
[1728325979574,22.664,148.16,148.12,16.8774]
[1728325979870,1.6875527,148.15,148.12,16.8774]
[1728325980252,1.6875527,148.15,148.09,16.881]
[1728325980475,6.752,148.11,148.06,23.6385]
[1728325981073,1.68806086,148.1,148.06,16.8846]
[1728325981282,6.1503,148.12,148.03,16.8878]
[1728325981464,15.7616,148.1,148.03,16.8878]
[1728325981777,8.44138487,148.09,148.04,6.7548]
[1728325982169,6.7532,148.08,148.04,6.7548]
[1728325982573,1.68838487,148.09,148.04,6.7548]
[1728325982778,8.44108487,148.09,148.04,6.7548]
[1728325983175,17.44998351,148.1,148.07,6.7535]
[1728325983371,17.44998351,148.1,148.06,6.7539]
[1728325983683,24.20228351,148.1,148.06,6.7539]
[1728325983981,15.7616,148.1,148.07,6.7534]
[1728325984151,17.44979967,148.1,147.98,86.4943697]
[1728325984356,17.44979967,148.1,148.02,23.6446]
[1728325984357,6.7539,148.07,148.02,23.6446]
[1728325984584,1.6885812,148.06,147.99,20.0]
[1728325984770,6.755,148.04,148.0,6.7565]
[1728325985282,6.7554,148.03,147.99,23.6494]
[1728325985586,39.9076,148.12,147.96,23.6541]
[1728325985587,6.7563,148.01,147.96,23.6541]
[1728325986086,23.1689,148.02,147.97,6.7577]
[1728325986259,8.44562551,148.01,147.96,16.8959]
[1728325986454,6.7567,148.0,147.96,23.6543]
[1728325987061,8.44669651,147.99,147.95,6.759]
[1728325987262,6.7577,147.98,147.93,16.8993]
[1728325987487,6.7576,147.99,147.94,6.7594]
[1728325987789,8.44716377,147.98,147.94,6.7594]
[1728325988089,8.44716377,147.98,147.93,16.8993]
[1728325988262,1.68956377,147.98,147.93,16.8993]
[1728325988582,18.58101342,148.01,147.91,6.8608]
[1728325989676,6.7586,147.96,147.91,6.8608]
[1728325989883,18.58101342,148.01,147.92,6.7603]
[1728325990092,6.7572,147.99,147.94,6.7594]
[1728325990386,1.68960484,147.98,147.92,16.9003]
[1728325990580,6.7581,147.97,147.92,16.9003]
[1728325990881,6.7581,147.97,147.93,30.536784]
[1728325991055,1.68965871,148.0,147.93,6.7599]
[1728325991259,1.68965871,148.0,147.92,16.9003]
[1728325991664,6.758,147.98,147.93,6.7598]
[1728325991860,1.68975563,147.97,147.93,23.776884]
[1728325992065,6.7573,147.99,147.94,6.7594]
[1728325992384,16.413,148.02,147.94,6.7594]
[1728325992385,1.68963261,147.98,147.95,6.7589]
[1728325992563,1.68960608,147.99,147.95,6.7589]
[1728325992757,1.68960608,147.99,147.97,6.758]
[1728325992957,1.6894255,148.0,147.97,6.758]
[1728325993481,1.6894255,148.01,147.97,6.758]
[1728325993679,16.413,148.02,147.96,16.8954]
[1728325993990,6.3661,148.04,147.98,16.8935]
[1728325994284,8.05509236,148.04,147.98,16.8935]
[1728325994591,6.7558,148.02,147.98,16.8935]
[1728325994880,1.68922965,148.01,147.98,23.6508]
[1728325995090,6.7561,148.02,147.98,16.8935]
[1728325995385,6.7561,148.02,147.95,33.795]
[1728325995386,6.7571,148.0,147.95,23.6562]
[1728325995560,1.68940657,147.99,147.95,23.6562]
[1728325995762,8.44660657,147.99,147.95,23.6562]
[1728325996577,6.7576,147.98,147.94,6.7594]
[1728325996772,1.6896678,147.97,147.93,6.7598]
[1728325997070,15.7752,147.99,147.95,6.759]
[1728325997470,24.22204854,147.99,147.94,23.6575]
[1728325997665,17.46474854,147.99,147.94,23.6575]
[1728325997867,1.68965435,147.98,147.94,23.6575]
[1728325998085,1.68965435,147.98,147.94,16.8981]
[1728325998366,6.7583,147.97,147.92,23.776884]
[1728325998589,1.68965323,147.96,147.92,6.7602]
[1728325998786,8.44835323,147.96,147.92,6.7602]
[1728325999268,1.68965323,147.96,147.92,6.7602]
[1728325999472,6.7586,147.96,147.92,6.7602]
[1728325999886,1.68986669,147.95,147.92,6.7602]
[1728326000993,8.44786933,147.98,147.93,6.7599]
[1728326001480,1.68986933,147.98,147.93,6.7599]
[1728326001676,6.7582,147.97,147.92,6.76]
[1728326001879,6.7582,147.97,147.91,17.0017]
[1728326001880,8.44806346,147.97,147.91,17.0017]
[1728326002073,1.68986346,147.97,147.93,6.7596]
[1728326002668,8.44806346,147.97,147.92,6.7602]
[1728326003585,1.68986346,147.97,147.91,23.7624]
[1728326003787,1.6899599,147.98,147.91,23.7624]
[1728326003991,6.4061,147.97,147.91,23.7624]
[1728326004303,1.69000582,147.96,147.91,23.7624]
[1728326005085,6.7593,147.95,147.91,23.7624]
[1728326005289,1.68998941,147.94,147.91,23.7624]
[1728326005480,8.44860376,147.96,147.91,23.7624]
[1728326006096,8.44860376,147.96,147.92,6.7603]
[1728326006265,8.09604259,147.97,147.94,6.7594]
[1728326006589,8.09604259,147.97,147.91,6.8607]
[1728326006590,6.7589,147.96,147.91,6.8607]
[1728326006776,1.68998017,147.95,147.91,0.1]
[1728326007083,1.68998017,147.95,147.92,6.7603]
[1728326007288,1.68998017,147.95,147.91,0.1]
[1728326007507,6.7604,147.92,147.91,0.1]
[1728326007662,1.69060371,147.92,147.87,0.839677]
[1728326007865,6.7622,147.88,147.87,0.839677]
[1728326009792,1.69092988,147.89,147.87,0.839677]
[1728326009996,8.45272988,147.89,147.87,0.839677]
[1728326010478,6.7622,147.88,147.87,0.839677]
[1728326010678,1.69092988,147.89,147.87,0.839677]
[1728326010880,6.7622,147.88,147.87,0.839677]
[1728326011087,1.69092988,147.89,147.87,0.839677]
[1728326011867,1.69067576,147.9,147.87,0.839677]
[1728326012079,8.45197576,147.9,147.87,0.839677]
[1728326012282,6.7619,147.89,147.87,0.839677]
[1728326012499,1.69070387,147.88,147.87,0.839677]
[1728326013496,24.76900387,147.88,147.87,0.839677]
[1728326013694,23.0783,147.88,147.87,0.839677]
[1728326015684,40.092984,147.88,147.81,0.1]
[1728326015988,6.7649,147.82,147.81,0.1]
[1728326016505,6.7648,147.83,147.81,0.1]
[1728326016683,1.69154872,147.82,147.81,0.1]
[1728326017215,6.7646,147.83,147.81,0.1]
[1728326017513,8.45641472,147.82,147.81,0.1]
[1728326017811,6.7649,147.82,147.81,0.1]
[1728326018687,22.9362,147.82,147.81,0.1]
[1728326019792,16.1713,147.82,147.81,0.1]
[1728326020016,1.6915178,147.85,147.81,6.8654]
[1728326020206,1.6915178,147.85,147.82,6.7645]
[1728326020396,1.69111661,147.84,147.81,0.1]
[1728326020789,6.7632,147.86,147.82,6.7649]
[1728326020790,1.69112494,147.85,147.82,6.7649]
[1728326021193,1.69112634,147.86,147.83,16.9109]
[1728326021509,6.7623,147.88,147.84,6.7639]
[1728326021721,1.6908661,147.87,147.84,6.7639]
[1728326022012,1.69098898,147.9,147.82,33.8243]
[1728326022220,6.7598,147.94,147.89,6.7617]
[1728326022386,1.69043345,147.93,147.87,16.9064]
[1728326022810,6.7604,147.92,147.88,6.7618]
[1728326022987,1.69043589,147.91,147.88,6.7618]
[1728326023191,1.69043086,147.94,147.9,6.7612]
[1728326023390,8.45003086,147.94,147.89,23.6655]
[1728326023587,1.69043086,147.94,147.89,16.9038]
[1728326023815,1.69043086,147.94,147.91,6.7604]
[1728326024012,1.69043086,147.94,147.9,6.7612]
[1728326024511,1.69043086,147.94,147.92,6.7602]
[1728326024714,1.69043086,147.94,147.91,16.9011]
[1728326025085,1.69043086,147.94,147.91,23.6615]
[1728326025298,1.69009678,147.95,147.92,6.7601]
[1728326025507,1.69009678,147.95,147.91,23.6618]
[1728326026391,6.7592,147.95,147.91,23.6618]
[1728326026594,1.69010076,147.94,147.91,23.6618]
[1728326027316,8.44990076,147.94,147.89,6.7617]
[1728326027513,1.69010076,147.94,147.88,16.9052]
[1728326027688,6.7607,147.92,147.88,23.6673]
[1728326028007,1.69028693,147.97,147.88,23.6673]
[1728326028211,6.7613,147.9,147.85,16.9083]
[1728326028394,8.45248566,147.89,147.85,16.9083]
[1728326028584,1.69072791,147.88,147.85,23.6717]
[1728326028787,1.6907108,147.91,147.88,6.7621]
[1728326029112,1.69042797,147.95,147.9,6.7613]
[1728326029415,1.69042797,147.95,147.9,6.7609]
[1728326029618,6.7595,147.94,147.9,6.7609]
[1728326029917,1.69026667,147.93,147.9,6.7609]
[1728326030210,1.69026612,147.92,147.84,30.6793697]
[1728326030509,6.7602,147.93,147.88,6.7621]
[1728326030712,1.69041582,147.92,147.88,6.7621]
[1728326031019,1.69039163,147.92,147.89,6.7613]
[1728326031185,1.6903014,147.95,147.88,16.905]
[1728326031389,8.4493014,147.95,147.9,6.7608]
[1728326031591,6.76,147.93,147.89,6.7616]
[1728326031885,6.7596,147.94,147.9,6.761]
[1728326032089,1.69014486,147.93,147.9,6.761]
[1728326032300,1.69012919,147.93,147.89,6.7617]
[1728326032490,1.69012919,147.93,147.9,6.7611]
[1728326032690,1.69014167,147.94,147.85,57.592684]
[1728326032997,1.69014167,147.94,147.91,6.7607]
[1728326033395,1.69014167,147.94,147.9,23.664]
[1728326033611,1.69014167,147.94,147.91,6.7608]
[1728326034187,1.69014167,147.94,147.9,16.9029]
[1728326034390,6.7596,147.94,147.9,23.6641]
[1728326034715,6.7582,147.97,147.93,6.7599]
[1728326034898,8.44852197,147.96,147.92,23.6608]
[1728326035296,8.44852197,147.96,147.89,23.6653]
[1728326035297,6.7602,147.93,147.89,23.6653]
[1728326035491,6.7595,147.94,147.9,6.7612]
[1728326035891,6.7587,147.96,147.92,6.7603]
[1728326036115,1.68994586,147.95,147.92,6.7603]
[1728326036297,1.68994586,147.95,147.91,23.6624]
[1728326036497,1.68994586,147.95,147.91,16.9018]
[1728326036800,1.68993924,147.98,147.91,16.9018]
[1728326036996,1.68993924,147.98,147.93,6.7598]
[1728326036997,6.7581,147.97,147.93,6.7598]
[1728326037201,6.7593,147.95,147.91,23.6626]
[1728326037602,1.68978767,147.96,147.91,16.9018]
[1728326037807,6.7586,147.96,147.92,6.7603]
[1728326038192,1.68990554,147.98,147.94,6.7594]
[1728326038193,8.44790554,147.98,147.94,6.7594]
[1728326039121,1.68975944,147.97,147.94,6.7594]
[1728326039295,8.44785944,147.97,147.93,23.6593]
[1728326040919,1.68975944,147.97,147.93,16.8995]
[1728326041219,8.44706157,147.99,147.95,6.7589]
[1728326041407,8.44706157,147.99,147.96,6.7584]
[1728326041408,1.68976157,147.99,147.96,6.7584]
[1728326041919,17.9503138,148.04,147.98,23.776884]
[1728326042124,6.7556,148.03,147.99,6.7571]
[1728326042713,13.0303,148.06,148.02,6.7558]
[1728326042904,17.65738241,148.07,147.98,23.776884]
[1728326043114,17.65738241,148.07,148.01,16.8899]
[1728326043705,15.9683,148.07,148.02,23.776884]
[1728326044026,1.68860978,148.06,148.01,16.8899]
[1728326044324,8.44300978,148.06,148.01,23.6458]
[1728326044838,6.7545,148.05,148.01,16.8899]
[1728326045601,1.68860978,148.06,148.01,16.8899]
[1728326045850,17.65707607,148.07,148.01,16.8899]
[1728326046010,24.41057607,148.07,148.02,6.7555]
[1728326046738,1.6886547,148.08,148.03,16.888]
[1728326046901,1.6886547,148.08,148.04,6.7545]
[1728326047100,6.754,148.06,148.02,30.532584]
[1728326047415,6.755,148.04,148.01,23.776884]
[1728326047724,1.68871264,148.09,148.0,16.8911]
[1728326047920,6.7554,148.03,148.0,23.776884]
[1728326048726,6.755,148.04,148.0,23.776884]
[1728326048923,6.7558,148.02,147.98,6.7575]
[1728326050933,6.7558,148.02,147.97,16.8945]
[1728326050934,6.7564,148.01,147.97,23.6525]
[1728326051143,1.68917715,148.05,147.97,16.8945]
[1728326051434,1.68917715,148.05,147.94,23.6576]
[1728326051435,6.7573,147.99,147.94,23.6576]
[1728326051602,6.758,147.98,147.94,16.8985]
[1728326051802,6.7573,147.99,147.94,16.8985]
[1728326052006,6.7573,147.99,147.95,6.7589]
[1728326052217,6.7576,147.98,147.94,23.6578]
[1728326052431,8.44800538,147.97,147.92,6.7603]
[1728326052803,6.7586,147.96,147.92,6.7603]
[1728326053026,1.68974939,147.98,147.86,6.1109]
[1728326053206,22.913,147.99,147.95,6.759]
[1728326054013,8.44714711,147.98,147.94,6.7593]
[1728326054536,8.44714711,147.98,147.89,33.8085]
[1728326054537,6.7588,147.96,147.92,6.7603]
[1728326055840,1.68954711,147.98,147.94,6.7593]
[1728326055841,8.44734711,147.98,147.94,6.7593]
[1728326056034,16.1557,147.99,147.94,16.898]
[1728326056622,22.9129,147.99,147.95,6.759]
[1728326058532,16.1557,147.99,147.94,16.898]
[1728326058734,6.7566,148.01,147.97,6.758]
[1728326058929,1.68945716,148.02,147.95,23.776884]
[1728326059416,6.7571,148.0,147.96,6.7585]
[1728326059611,1.68945716,148.02,147.95,23.776884]
[1728326059935,1.68939132,148.02,147.98,6.7575]
[1728326060115,21.8646,148.03,147.97,23.776884]
[1728326060323,6.7563,148.01,147.97,30.534884]
[1728326060517,21.8646,148.03,147.99,6.7569]
[1728326060823,15.5288,148.03,148.0,6.7567]
[1728326061025,15.5288,148.03,148.01,6.7561]
[1728326061340,6.7559,148.02,147.98,6.7573]
[1728326062821,6.7563,148.01,147.97,47.429284]
[1728326063414,6.7567,148.0,147.96,6.7584]
[1728326063827,6.7567,148.0,147.95,6.7588]
[1728326064025,6.7572,147.99,147.95,6.7588]
[1728326064237,1.68898539,148.02,147.94,23.6568]
[1728326064238,6.7577,147.98,147.94,23.6568]
[1728326064537,18.57878539,148.02,147.94,16.8978]
[1728326064741,6.7581,147.97,147.94,16.8978]
[1728326064940,18.57878539,148.02,147.91,16.9013]
[1728326065244,6.7595,147.94,147.91,16.9013]
[1728326066037,6.76,147.93,147.89,6.7616]
[1728326067325,6.7612,147.91,147.86,6.7631]
[1728326067525,6.7613,147.9,147.86,6.7631]
[1728326067734,6.7613,147.9,147.85,23.6719]
[1728326067946,1.69028643,147.93,147.83,6.1106]
[1728326068445,6.7619,147.89,147.85,6.7635]
[1728326068644,1.69028643,147.93,147.83,6.7645]
[1728326068849,6.7623,147.88,147.83,6.7645]
[1728326069350,8.45209574,147.9,147.85,6.7632]
[1728326069530,15.6722,147.91,147.81,33.9271]
[1728326069740,15.6722,147.91,147.87,6.7623]
[1728326070237,1.69029634,147.9,147.81,33.9271]
[1728326070546,6.7626,147.88,147.83,23.6749]
[1728326070752,6.7626,147.88,147.84,6.7639]
[1728326071040,6.7618,147.89,147.84,6.7639]
[1728326072239,17.36279962,147.91,147.85,16.9084]
[1728326072439,15.6722,147.91,147.86,23.776884]
[1728326072925,15.6722,147.91,147.87,6.7623]
[1728326073135,15.6722,147.91,147.88,6.7621]
[1728326073339,15.6722,147.91,147.87,16.9062]
[1728326073647,14.65609165,147.94,147.89,6.7616]
[1728326073839,6.76,147.93,147.89,6.7616]
[1728326074042,1.69006485,147.92,147.88,23.776884]
[1728326074247,6.2064,147.94,147.87,16.9062]
[1728326074248,6.7614,147.9,147.87,16.9062]
[1728326074456,6.7614,147.9,147.86,6.7629]
[1728326074642,6.7614,147.9,147.84,16.9095]
[1728326074842,6.7613,147.9,147.85,30.540084]
[1728326075842,6.7613,147.9,147.85,23.776884]
[1728326076049,6.7613,147.9,147.86,6.7631]
[1728326076364,6.7607,147.92,147.87,6.7626]
[1728326076732,8.45113246,147.91,147.87,6.7626]
[1728326077065,8.45033578,147.93,147.88,6.7621]
[1728326077353,22.0892,147.95,147.9,6.7609]
[1728326077552,15.3301,147.95,147.9,6.7609]
[1728326078737,15.3301,147.95,147.91,23.776884]
[1728326078932,15.3301,147.95,147.92,6.7604]
[1728326079648,15.3301,147.95,147.91,30.537584]
[1728326079865,6.7604,147.92,147.88,23.776884]
[1728326080043,6.7604,147.92,147.88,30.538984]
[1728326080350,17.01992532,147.95,147.88,23.776884]
[1728326080563,17.01992532,147.95,147.9,6.7613]
[1728326080564,6.7595,147.94,147.9,6.7613]
[1728326082340,6.7611,147.91,147.87,16.9059]
[1728326082859,1.69010372,147.93,147.85,6.7632]
[1728326083155,6.7618,147.89,147.85,6.7632]
[1728326083362,6.7618,147.89,147.84,23.6734]
[1728326083546,6.7623,147.88,147.84,23.6734]
[1728326084943,1.69056435,147.9,147.8,40.78140922]
[1728326085144,6.7632,147.86,147.82,6.7646]
[1728326085339,6.7628,147.87,147.81,17.0127]
[1728326085536,6.7628,147.87,147.83,6.7644]
[1728326087163,22.3826,147.88,147.84,6.7637]
[1728326087675,15.6204,147.88,147.86,6.7631]
[1728326087848,12.8092,147.91,147.86,6.7631]
[1728326088050,14.49957367,147.91,147.86,6.7631]
[1728326088270,7.73858775,147.91,147.86,6.7631]
[1728326088469,18.28949479,147.92,147.86,23.776884]
[1728326088771,16.5991,147.92,147.89,6.7617]
[1728326089162,16.5991,147.92,147.86,23.776884]
[1728326089364,6.7604,147.92,147.89,16.904]
[1728326089574,6.7609,147.91,147.87,6.7623]
[1728326089871,6.7609,147.91,147.86,40.684484]
[1728326091052,15.29,147.96,147.86,40.684484]